[Event "Blixt-SM 2025"]
[Site "Norrköping, Sweden"]
[Date "2025.09.26"]
[Round "11.4"]
[White "Muntean, Victor"]
[Black "Lindh, Fredrik"]
[Result "1-0"]
[TimeControl "3 min + 2 sec/move"]
[BlackTitle "FM"]
[WhiteElo "2151"]
[BlackElo "2249"]

1. e4 {[%clk 00:03:03]} {[%emt 00:00:01]} c5 {[%clk 00:03:03]} {[%emt
00:00:01]} 2. c3 {[%clk 00:03:04]} g6 {[%clk 00:03:04]} 3. d4 {[%clk 00:03:05]}
{[%emt 00:00:01]} cxd4 4. cxd4 {[%clk 00:03:06]} d5 {[%clk 00:03:06]} 5. e5
{[%clk 00:03:06]} {[%emt 00:00:03]} Nc6 {[%clk 00:03:07]} {[%emt 00:00:01]} 6.
Nf3 {[%clk 00:02:59]} {[%emt 00:00:08]} Bg7 {[%clk 00:03:08]} {[%emt 00:00:02]}
7. Nc3 {[%clk 00:03:00]} {[%emt 00:00:01]} Nh6 {[%clk 00:03:05]} {[%emt
00:00:05]} 8. Qb3 {[%clk 00:02:59]} {[%emt 00:00:03]} Nf5 {[%clk 00:02:49]}
{[%emt 00:00:18]} 9. Qxd5 {[%clk 00:02:30]} {[%emt 00:00:31]} Nfxd4 {[%clk
00:02:34]} {[%emt 00:00:17]} 10. Nxd4 {[%clk 00:02:27]} {[%emt 00:00:05]} Nxd4
{[%clk 00:02:15]} {[%emt 00:00:21]} 11. Bb5+ {[%clk 00:02:03]} {[%emt
00:00:26]} Nxb5 {[%clk 00:02:13]} {[%emt 00:00:04]} 12. Qxb5+ {[%clk 00:02:04]}
{[%emt 00:00:01]} Bd7 {[%clk 00:02:01]} {[%emt 00:00:14]} 13. Qe2 {[%clk
00:02:04]} {[%emt 00:00:01]} Qc7 {[%clk 00:01:53]} {[%emt 00:00:11]} 14. Bf4
{[%clk 00:01:59]} {[%emt 00:00:07]} Be6 {[%clk 00:01:41]} {[%emt 00:00:13]} 15.
Rc1 {[%clk 00:01:27]} {[%emt 00:00:34]} O-O {[%clk 00:01:42]} {[%emt 00:00:02]}
16. b3 {[%clk 00:01:16]} {[%emt 00:00:14]} Rac8 {[%clk 00:01:20]} {[%emt
00:00:24]} 17. O-O {[%clk 00:01:14]} {[%emt 00:00:03]} Qa5 {[%clk 00:01:21]} 18.
Na4 {[%clk 00:01:04]} {[%emt 00:00:12]} Bd7 {[%clk 00:01:15]} {[%emt 00:00:08]}
19. Qe4 {[%clk 00:00:34]} {[%emt 00:00:31]} Bc6 {[%clk 00:01:10]} {[%emt
00:00:07]} 20. Qc4 {[%clk 00:00:27]} {[%emt 00:00:09]} Bxe5 {[%clk 00:00:59]}
{[%emt 00:00:13]} 21. Bxe5 {[%clk 00:00:10]} {[%emt 00:00:20]} Qxe5 {[%clk
00:01:00]} {[%emt 00:00:01]} 22. Qh4 {[%clk 00:00:07]} {[%emt 00:00:05]} Qd5
{[%clk 00:00:52]} {[%emt 00:00:10]} 23. Qg3 {[%clk 00:00:08]} Bxa4 {[%clk
00:00:50]} {[%emt 00:00:04]} 24. bxa4 {[%clk 00:00:09]} Rxc1 {[%clk 00:00:43]}
{[%emt 00:00:09]} 25. Rxc1 {[%clk 00:00:10]} Qxa2 {[%clk 00:00:44]} {[%emt
00:00:01]} 26. Qh4 {[%clk 00:00:04]} {[%emt 00:00:08]} Qd2 {[%clk 00:00:32]}
{[%emt 00:00:14]} 27. Rb1 {[%clk 00:00:04]} {[%emt 00:00:02]} Qc2 {[%clk
00:00:26]} {[%emt 00:00:08]} 28. Re1 {[%clk 00:00:04]} {[%emt 00:00:02]} e6
{[%clk 00:00:26]} {[%emt 00:00:02]} 29. h3 {[%clk 00:00:05]} {[%emt 00:00:01]}
Rc8 {[%clk 00:00:23]} {[%emt 00:00:05]} 30. Re4 {[%clk 00:00:06]} {[%emt
00:00:01]} Qd1+ {[%clk 00:00:20]} {[%emt 00:00:04]} 31. Kh2 {[%clk 00:00:07]}
{[%emt 00:00:02]} Qd6+ {[%clk 00:00:21]} {[%emt 00:00:01]} 32. g3 {[%clk
00:00:05]} {[%emt 00:00:04]} Rc2 {[%clk 00:00:21]} {[%emt 00:00:02]} 33. Rf4
{[%clk 00:00:05]} {[%emt 00:00:02]} Qb6 {[%clk 00:00:14]} {[%emt 00:00:09]} 34.
Qf6 {[%clk 00:00:05]} {[%emt 00:00:02]} Qc7 {[%clk 00:00:12]} {[%emt 00:00:03]}
35. h4 {[%clk 00:00:04]} {[%emt 00:00:04]} h5 {[%clk 00:00:13]} {[%emt
00:00:01]} 36. Rf3 {[%clk 00:00:03]} {[%emt 00:00:03]} a6 {[%clk 00:00:13]}
{[%emt 00:00:02]} 37. Rd3 {[%clk 00:00:03]} {[%emt 00:00:02]} Kh7 {[%clk
00:00:05]} {[%emt 00:00:10]} 38. Kh3 {[%clk 00:00:04]} Rc5 {[%clk 00:00:04]}
{[%emt 00:00:03]} 39. Rd8 {[%clk 00:00:05]} Qxd8 {[%clk 00:00:03]} {[%emt
00:00:03]} 40. Qxd8 {[%clk 00:00:06]} Rd5 {[%clk 00:00:04]} 41. Qe7 {[%clk
00:00:08]} Kg7 {[%emt 00:00:02]} 42. Qxb7 {[%emt 00:00:01]} a5 {[%clk
00:00:03]} 43. Qb6 {[%clk 00:00:08]} {[%emt 00:00:02]} Rf5 {[%clk 00:00:04]}
{[%emt 00:00:01]} 44. f4 {[%clk 00:00:08]} {[%emt 00:00:01]} Rd5 {[%clk
00:00:05]} 45. Kg2 {[%clk 00:00:07]} {[%emt 00:00:03]} Kf6 {[%clk 00:00:06]}
{[%emt 00:00:01]} 46. Kf3 {[%clk 00:00:08]} Kg7 {[%clk 00:00:07]} 47. Ke4
{[%clk 00:00:10]} Kf6 {[%clk 00:00:09]} 48. Qc6 {[%clk 00:00:10]} {[%emt
00:00:02]} Kg7 {[%clk 00:00:10]} 49. Qxd5 {[%clk 00:00:10]} {[%emt 00:00:02]}
exd5+ {[%clk 00:00:11]} 50. Kxd5 {[%clk 00:00:11]} Kf6 {[%clk 00:00:12]} 51.
Kc5 {[%clk 00:00:13]} {[%emt 00:00:01]} Ke6 {[%clk 00:00:12]} {[%emt 00:00:01]}
52. Kb5 {[%clk 00:00:14]} Kd5 {[%clk 00:00:13]} 53. Kxa5 {[%clk 00:00:15]} Kc5
{[%clk 00:00:14]} 54. Ka6 {[%clk 00:00:16]} {[%emt 00:00:02]} Kc6 {[%clk
00:00:15]} 55. a5 {[%clk 00:00:13]} {[%emt 00:00:05]} f5 {[%clk 00:00:15]}
{[%emt 00:00:02]} 56. Ka7 {[%clk 00:00:13]} {[%emt 00:00:01]} Kc7 {[%clk
00:00:17]} 57. a6 {[%clk 00:00:14]} Kc8 {[%clk 00:00:16]} {[%emt 00:00:02]} 58.
Kb6 {[%clk 00:00:16]} 1-0

[Event "Blixt-SM 2025"]
[Site "Norrköping, Sweden"]
[Date "2025.09.26"]
[Round "1.9"]
[White "Halvarsson, Peter"]
[Black "Grahn, Vidar"]
[Result "0-1"]
[TimeControl "3 min + 2 sec/move"]
[BlackTitle "FM"]
[WhiteElo "1933"]
[BlackElo "2236"]

1. e4 {[%clk 00:03:03]} c5 {[%clk 00:03:03]} 2. a3 {[%clk 00:03:04]} {[%emt
00:00:02]} g6 {[%clk 00:03:01]} {[%emt 00:00:04]} 3. h4 {[%clk 00:03:04]}
{[%emt 00:00:02]} d5 {[%clk 00:02:54]} {[%emt 00:00:09]} 4. exd5 {[%clk
00:03:02]} {[%emt 00:00:04]} Nf6 {[%clk 00:02:54]} {[%emt 00:00:02]} 5. h5
{[%clk 00:02:52]} {[%emt 00:00:11]} Nxh5 {[%clk 00:02:43]} {[%emt 00:00:13]} 6.
Rxh5 {[%clk 00:02:49]} {[%emt 00:00:05]} gxh5 {[%clk 00:02:43]} {[%emt
00:00:02]} 7. Qxh5 {[%clk 00:02:50]} {[%emt 00:00:01]} Nd7 {[%clk 00:02:33]}
{[%emt 00:00:12]} 8. Bc4 {[%clk 00:02:37]} {[%emt 00:00:15]} Nf6 {[%clk
00:02:34]} {[%emt 00:00:02]} 9. Qf3 {[%clk 00:02:35]} {[%emt 00:00:03]} Bg4
{[%clk 00:02:27]} {[%emt 00:00:09]} 10. Bb5+ {[%clk 00:02:30]} {[%emt
00:00:08]} Bd7 {[%clk 00:02:27]} {[%emt 00:00:01]} 11. Bc4 {[%clk 00:02:21]}
{[%emt 00:00:12]} a6 {[%clk 00:02:24]} {[%emt 00:00:05]} 12. a4 {[%clk
00:02:12]} {[%emt 00:00:10]} Bg4 {[%clk 00:02:22]} {[%emt 00:00:03]} 13. Qb3
{[%clk 00:02:10]} {[%emt 00:00:05]} Qc7 {[%clk 00:02:14]} {[%emt 00:00:09]} 14.
d6 {[%clk 00:02:03]} {[%emt 00:00:10]} exd6 {[%clk 00:02:13]} {[%emt 00:00:04]}
15. Nc3 {[%clk 00:01:59]} {[%emt 00:00:05]} Bg7 {[%clk 00:02:05]} {[%emt
00:00:10]} 16. f3 {[%clk 00:01:48]} {[%emt 00:00:14]} Be6 {[%clk 00:02:04]}
{[%emt 00:00:02]} 17. Nge2 {[%clk 00:01:42]} {[%emt 00:00:08]} Bxc4 {[%clk
00:01:56]} {[%emt 00:00:10]} 18. Qxc4 {[%clk 00:01:43]} {[%emt 00:00:02]} O-O
{[%clk 00:01:47]} {[%emt 00:00:10]} 19. d3 {[%clk 00:01:43]} {[%emt 00:00:02]}
Qc6 {[%clk 00:01:39]} {[%emt 00:00:10]} 20. Be3 {[%clk 00:01:34]} {[%emt
00:00:12]} b5 {[%clk 00:01:35]} {[%emt 00:00:05]} 21. Qh4 {[%clk 00:01:27]}
{[%emt 00:00:09]} b4 {[%clk 00:01:17]} {[%emt 00:00:21]} 22. Ne4 {[%clk
00:01:25]} {[%emt 00:00:03]} Nxe4 {[%clk 00:01:16]} {[%emt 00:00:04]} 23. fxe4
{[%clk 00:01:17]} {[%emt 00:00:09]} d5 {[%clk 00:01:16]} {[%emt 00:00:03]} 24.
exd5 {[%clk 00:00:34]} {[%emt 00:00:45]} Qxd5 {[%clk 00:01:14]} {[%emt
00:00:04]} 25. Nf4 {[%clk 00:00:34]} {[%emt 00:00:02]} Qe5 {[%clk 00:01:12]}
{[%emt 00:00:04]} 26. Kd2 {[%clk 00:00:28]} {[%emt 00:00:08]} Rfe8 {[%clk
00:01:05]} {[%emt 00:00:09]} 27. Qh3 {[%clk 00:00:15]} {[%emt 00:00:15]} c4
{[%clk 00:00:55]} {[%emt 00:00:12]} 28. Rh1 {[%clk 00:00:16]} h6 {[%clk
00:00:50]} {[%emt 00:00:08]} 29. d4 {[%clk 00:00:16]} {[%emt 00:00:02]} Rad8
{[%clk 00:00:48]} {[%emt 00:00:04]} 30. c3 {[%clk 00:00:17]} Qe4 {[%clk
00:00:40]} {[%emt 00:00:09]} 31. Qg3 {[%clk 00:00:16]} {[%emt 00:00:04]} bxc3+
{[%clk 00:00:38]} {[%emt 00:00:03]} 32. bxc3 {[%clk 00:00:17]} {[%emt
00:00:01]} Rb8 {[%clk 00:00:37]} {[%emt 00:00:04]} 33. Nh5 {[%clk 00:00:11]}
{[%emt 00:00:08]} Rb2+ {[%clk 00:00:37]} {[%emt 00:00:01]} 34. Ke1 {[%clk
00:00:12]} Qb1# {[%clk 00:00:37]} {[%emt 00:00:02]} 0-1

[Event "Blixt-SM 2025"]
[Site "Norrköping, Sweden"]
[Date "2025.09.26"]
[Round "3.5"]
[White "Nygren, Kim"]
[Black "Bohman Karlholm, Adrian"]
[Result "1-0"]
[TimeControl "3 min + 2 sec/move"]
[WhiteTitle "CM"]
[WhiteElo "2173"]
[BlackElo "2102"]

1. d4 {[%clk 00:03:02]} {[%emt 00:00:01]} Nf6 {[%clk 00:03:03]} {[%emt
00:00:01]} 2. Bg5 {[%clk 00:03:02]} {[%emt 00:00:02]} e6 {[%clk 00:03:03]}
{[%emt 00:00:02]} 3. e4 {[%clk 00:03:02]} {[%emt 00:00:02]} h6 {[%clk
00:03:03]} {[%emt 00:00:01]} 4. Bxf6 {[%clk 00:03:02]} {[%emt 00:00:03]} Qxf6
{[%clk 00:03:03]} {[%emt 00:00:01]} 5. Nf3 {[%clk 00:02:59]} {[%emt 00:00:05]}
b6 {[%clk 00:02:50]} {[%emt 00:00:16]} 6. e5 {[%clk 00:02:56]} {[%emt
00:00:05]} Qd8 {[%clk 00:02:49]} {[%emt 00:00:03]} 7. Nbd2 {[%clk 00:02:55]}
{[%emt 00:00:03]} Bb7 {[%clk 00:02:49]} {[%emt 00:00:02]} 8. Bd3 {[%clk
00:02:54]} {[%emt 00:00:02]} d6 {[%clk 00:02:35]} {[%emt 00:00:16]} 9. Qe2
{[%clk 00:02:54]} {[%emt 00:00:04]} Nd7 {[%clk 00:02:31]} {[%emt 00:00:06]} 10.
O-O {[%clk 00:02:29]} {[%emt 00:00:27]} dxe5 {[%clk 00:02:24]} {[%emt
00:00:09]} 11. dxe5 {[%clk 00:02:28]} {[%emt 00:00:04]} Be7 {[%clk 00:02:01]}
{[%emt 00:00:24]} 12. Rad1 {[%clk 00:02:25]} {[%emt 00:00:05]} Qc8 {[%clk
00:01:38]} {[%emt 00:00:25]} 13. Nd4 {[%clk 00:02:09]} {[%emt 00:00:18]} c5
{[%clk 00:01:17]} {[%emt 00:00:23]} 14. Nxe6 {[%clk 00:01:27]} {[%emt
00:00:44]} fxe6 {[%clk 00:01:12]} {[%emt 00:00:06]} 15. Bg6+ {[%clk 00:01:22]}
{[%emt 00:00:08]} Kd8 {[%clk 00:01:07]} {[%emt 00:00:07]} 16. Nc4 {[%clk
00:01:10]} {[%emt 00:00:15]} Bd5 {[%clk 00:00:57]} {[%emt 00:00:11]} 17. Ne3
{[%clk 00:00:59]} {[%emt 00:00:13]} Bc6 {[%clk 00:00:52]} {[%emt 00:00:07]} 18.
Qg4 {[%clk 00:00:55]} {[%emt 00:00:06]} Kc7 {[%clk 00:00:22]} {[%emt 00:00:32]}
19. Qxe6 {[%clk 00:00:53]} {[%emt 00:00:04]} Bg5 {[%clk 00:00:09]} {[%emt
00:00:15]} 20. f4 {[%clk 00:00:43]} {[%emt 00:00:12]} Bd8 {[%clk 00:00:07]}
{[%emt 00:00:04]} 21. Nc4 {[%clk 00:00:26]} {[%emt 00:00:19]} Nf8 {[%clk
00:00:05]} {[%emt 00:00:05]} 22. Qf7+ {[%clk 00:00:14]} {[%emt 00:00:13]} Kb8
{[%clk 00:00:05]} {[%emt 00:00:02]} 23. Bf5 {[%clk 00:00:11]} {[%emt 00:00:05]}
Qc7 {[%clk 00:00:06]} 24. Qh5 {[%clk 00:00:04]} {[%emt 00:00:09]} g6 {[%clk
00:00:07]} 25. Bxg6 {[%clk 00:00:05]} {[%emt 00:00:02]} Rg8 {[%clk 00:00:08]}
26. f5 {[%clk 00:00:05]} {[%emt 00:00:03]} Be7 {[%clk 00:00:07]} {[%emt
00:00:02]} 27. f6 {[%clk 00:00:05]} {[%emt 00:00:02]} Rxg6 {[%clk 00:00:08]}
{[%emt 00:00:01]} 28. g3 {[%clk 00:00:04]} {[%emt 00:00:04]} Rg5 {[%clk
00:00:08]} 29. Qxh6 {[%clk 00:00:05]} {[%emt 00:00:02]} Rg6 {[%clk 00:00:09]}
{[%emt 00:00:01]} 30. fxe7 {[%clk 00:00:05]} {[%emt 00:00:02]} Rxh6 {[%clk
00:00:09]} 31. exf8=Q+ {[%clk 00:00:06]} {[%emt 00:00:02]} Kb7 {[%clk
00:00:07]} {[%emt 00:00:04]} 32. Nd6+ {[%clk 00:00:07]} {[%emt 00:00:01]} Ka6
{[%clk 00:00:08]} {[%emt 00:00:02]} 33. Qxh6 {[%clk 00:00:08]} {[%emt
00:00:01]} 1-0

[ePGN "0.1;DGT LiveChess/2.2.7"]

[Event "Blixt-SM 2025"]
[Site "Norrköping, Sweden"]
[Date "2025.09.26"]
[Round "5.1"]
[White "Nygren, Kim"]
[Black "Seo, Jung Min"]
[Result "0-1"]
[TimeControl "3 min + 2 sec/move"]
[WhiteTitle "CM"]
[BlackTitle "IM"]
[WhiteElo "2173"]
[BlackElo "2480"]

1. d4 {[%clk 00:03:02]} {[%emt 00:00:02]} Nf6 {[%clk 00:03:03]} {[%emt
00:00:02]} 2. c4 {[%clk 00:03:02]} {[%emt 00:00:01]} e6 {[%clk 00:03:04]} 3.
Nc3 {[%clk 00:03:02]} {[%emt 00:00:02]} Bb4 {[%clk 00:03:05]} 4. Qc2 {[%clk
00:03:01]} {[%emt 00:00:03]} h6 {[%clk 00:02:54]} {[%emt 00:00:13]} 5. Nf3
{[%clk 00:02:59]} {[%emt 00:00:04]} b6 {[%clk 00:02:50]} {[%emt 00:00:06]} 6.
e4 {[%clk 00:02:56]} {[%emt 00:00:05]} Bb7 {[%clk 00:02:46]} {[%emt 00:00:07]}
7. Bd3 {[%clk 00:02:54]} {[%emt 00:00:03]} O-O {[%clk 00:02:24]} {[%emt
00:00:24]} 8. d5 {[%clk 00:02:25]} {[%emt 00:00:31]} exd5 {[%clk 00:02:18]}
{[%emt 00:00:08]} 9. exd5 {[%clk 00:02:24]} {[%emt 00:00:03]} Re8+ {[%clk
00:02:14]} {[%emt 00:00:06]} 10. Be3 {[%clk 00:02:23]} {[%emt 00:00:03]} Bc5
{[%clk 00:02:13]} {[%emt 00:00:04]} 11. O-O-O {[%clk 00:01:58]} {[%emt
00:00:26]} Bxe3+ {[%clk 00:02:13]} {[%emt 00:00:02]} 12. fxe3 {[%clk 00:02:00]}
Na6 {[%clk 00:02:07]} {[%emt 00:00:07]} 13. e4 {[%clk 00:01:51]} {[%emt
00:00:11]} Nb4 {[%clk 00:02:07]} {[%emt 00:00:02]} 14. Qe2 {[%clk 00:01:44]}
{[%emt 00:00:09]} Nxd3+ {[%clk 00:02:08]} {[%emt 00:00:02]} 15. Qxd3 {[%clk
00:01:29]} {[%emt 00:00:17]} d6 {[%clk 00:02:09]} 16. Nd4 {[%clk 00:01:27]}
{[%emt 00:00:04]} Ng4 {[%clk 00:02:07]} {[%emt 00:00:04]} 17. Qe2 {[%clk
00:00:56]} {[%emt 00:00:33]} Bc8 {[%clk 00:01:50]} {[%emt 00:00:19]} 18. Kb1
{[%clk 00:00:44]} {[%emt 00:00:15]} Ne5 {[%clk 00:01:41]} {[%emt 00:00:10]} 19.
h3 {[%clk 00:00:35]} {[%emt 00:00:11]} Bd7 {[%clk 00:01:42]} {[%emt 00:00:01]}
20. g4 {[%clk 00:00:36]} {[%emt 00:00:02]} a6 {[%clk 00:01:41]} {[%emt
00:00:03]} 21. Rdf1 {[%clk 00:00:33]} {[%emt 00:00:05]} c5 {[%clk 00:01:31]}
{[%emt 00:00:11]} 22. dxc6 {[%clk 00:00:29]} {[%emt 00:00:06]} Nxc6 {[%clk
00:01:32]} {[%emt 00:00:01]} 23. Nf5 {[%clk 00:00:26]} {[%emt 00:00:06]} Be6
{[%clk 00:00:59]} {[%emt 00:00:35]} 24. h4 {[%clk 00:00:21]} {[%emt 00:00:07]}
Ne5 {[%clk 00:00:58]} {[%emt 00:00:03]} 25. Nd5 {[%clk 00:00:17]} {[%emt
00:00:06]} b5 {[%clk 00:00:55]} {[%emt 00:00:05]} 26. g5 {[%clk 00:00:10]}
{[%emt 00:00:09]} Nxc4 {[%clk 00:00:34]} {[%emt 00:00:23]} 27. Nxg7 {[%clk
00:00:04]} {[%emt 00:00:08]} Bxd5 {[%clk 00:00:25]} {[%emt 00:00:11]} 0-1

[Event "Blixt-SM 2025"]
[Site "Norrköping, Sweden"]
[Date "2025.09.26"]
[Round "6.7"]
[White "Bohman Karlholm, Adrian"]
[Black "Smith, Axel"]
[Result "1-0"]
[TimeControl "3 min + 2 sec/move"]
[BlackTitle "GM"]
[WhiteElo "2102"]
[BlackElo "2431"]

1. d4 {[%clk 00:03:03]} {[%emt 00:00:01]} Nf6 {[%clk 00:03:02]} {[%emt
00:00:02]} 2. c4 {[%clk 00:03:04]} {[%emt 00:00:01]} a6 {[%clk 00:03:04]} 3.
Nc3 {[%clk 00:03:03]} {[%emt 00:00:03]} c5 {[%clk 00:03:05]} 4. d5 {[%emt
00:00:03]} b5 5. cxb5 {[%clk 00:03:01]} {[%emt 00:00:02]} axb5 {[%clk
00:03:08]} 6. Nxb5 {[%emt 00:00:09]} e6 7. e4 {[%clk 00:02:49]} {[%emt
00:00:06]} Nxe4 {[%clk 00:02:23]} {[%emt 00:00:49]} 8. Nf3 {[%clk 00:02:38]}
{[%emt 00:00:13]} Ba6 {[%clk 00:02:10]} {[%emt 00:00:15]} 9. Nc3 {[%clk
00:02:09]} {[%emt 00:00:31]} Nxc3 {[%clk 00:01:49]} {[%emt 00:00:23]} 10. bxc3
{[%clk 00:02:09]} {[%emt 00:00:02]} Bxf1 {[%clk 00:01:50]} 11. Kxf1 {[%clk
00:02:10]} {[%emt 00:00:01]} Be7 {[%clk 00:01:20]} {[%emt 00:00:33]} 12. g3
{[%clk 00:02:08]} {[%emt 00:00:03]} Bf6 {[%clk 00:01:07]} {[%emt 00:00:16]} 13.
Bb2 {[%clk 00:01:48]} {[%emt 00:00:21]} Qa5 {[%clk 00:01:06]} {[%emt 00:00:04]}
14. Qd3 {[%clk 00:01:36]} {[%emt 00:00:13]} Qa6 {[%clk 00:01:02]} {[%emt
00:00:06]} 15. Ke2 {[%clk 00:01:33]} {[%emt 00:00:05]} exd5 {[%clk 00:00:58]}
{[%emt 00:00:07]} 16. Rhd1 {[%clk 00:01:29]} {[%emt 00:00:05]} O-O {[%clk
00:00:29]} {[%emt 00:00:30]} 17. Qxa6 {[%clk 00:01:29]} {[%emt 00:00:03]} Rxa6
{[%clk 00:00:27]} {[%emt 00:00:04]} 18. Rxd5 {[%clk 00:01:28]} {[%emt
00:00:03]} c4 {[%clk 00:00:21]} {[%emt 00:00:09]} 19. a4 {[%clk 00:01:15]}
{[%emt 00:00:15]} Rc8 {[%clk 00:00:19]} {[%emt 00:00:04]} 20. Nd4 {[%clk
00:01:05]} {[%emt 00:00:11]} Bxd4 {[%clk 00:00:19]} {[%emt 00:00:03]} 21. Rxd4
{[%clk 00:01:05]} {[%emt 00:00:02]} Kf8 {[%clk 00:00:17]} {[%emt 00:00:03]} 22.
Bc1 {[%clk 00:00:52]} {[%emt 00:00:15]} Ke8 {[%clk 00:00:17]} {[%emt 00:00:02]}
23. Bf4 {[%clk 00:00:52]} Re6+ {[%clk 00:00:17]} {[%emt 00:00:03]} 24. Kd2
{[%clk 00:00:51]} {[%emt 00:00:02]} Na6 {[%clk 00:00:19]} {[%emt 00:00:01]} 25.
Bd6 {[%clk 00:00:42]} {[%emt 00:00:10]} Rc6 {[%clk 00:00:19]} {[%emt 00:00:03]}
26. Ba3 {[%clk 00:00:35]} {[%emt 00:00:07]} Re5 {[%clk 00:00:17]} {[%emt
00:00:06]} 27. Rb1 {[%clk 00:00:36]} f6 {[%clk 00:00:16]} {[%emt 00:00:03]} 28.
Rb7 {[%clk 00:00:29]} {[%emt 00:00:09]} Nc7 {[%clk 00:00:12]} {[%emt 00:00:07]}
29. Rb4 {[%clk 00:00:23]} {[%emt 00:00:06]} d5 {[%clk 00:00:10]} {[%emt
00:00:05]} 30. a5 {[%clk 00:00:19]} {[%emt 00:00:07]} Na6 {[%clk 00:00:09]}
{[%emt 00:00:03]} 31. Rb6 {[%clk 00:00:18]} {[%emt 00:00:02]} Kd7 {[%clk
00:00:09]} {[%emt 00:00:02]} 32. f4 {[%clk 00:00:17]} {[%emt 00:00:03]} Rh5
{[%clk 00:00:10]} {[%emt 00:00:02]} 33. Ke3 {[%clk 00:00:16]} {[%emt 00:00:03]}
Rxb6 {[%clk 00:00:12]} {[%emt 00:00:01]} 34. axb6 {[%emt 00:00:02]} Kc6 {[%clk
00:00:14]} 35. h4 {[%clk 00:00:12]} {[%emt 00:00:06]} Kxb6 {[%clk 00:00:14]}
{[%emt 00:00:01]} 36. Bf8 {[%clk 00:00:11]} {[%emt 00:00:02]} g6 {[%clk
00:00:15]} {[%emt 00:00:02]} 37. Kf3 {[%clk 00:00:11]} {[%emt 00:00:03]} Kc6
{[%clk 00:00:15]} {[%emt 00:00:01]} 38. Be7 {[%clk 00:00:11]} {[%emt 00:00:02]}
f5 {[%clk 00:00:16]} {[%emt 00:00:02]} 39. Rd1 {[%clk 00:00:10]} {[%emt
00:00:02]} Nc5 {[%clk 00:00:17]} 40. Ra1 {[%clk 00:00:10]} {[%emt 00:00:02]}
Ne4 {[%clk 00:00:18]} {[%emt 00:00:02]} 41. Bb4 {[%clk 00:00:07]} {[%emt
00:00:04]} h6 {[%clk 00:00:17]} {[%emt 00:00:03]} 42. Ra6+ {[%clk 00:00:08]}
Kb5 {[%clk 00:00:19]} 43. Rxg6 {[%emt 00:00:02]} Ka4 44. Rg8 {[%clk 00:00:07]}
{[%emt 00:00:03]} Kb3 {[%clk 00:00:22]} {[%emt 00:00:01]} 45. Rd8 {[%clk
00:00:07]} {[%emt 00:00:02]} Nxc3 {[%clk 00:00:23]} {[%emt 00:00:01]} 46. Bxc3
{[%clk 00:00:07]} {[%emt 00:00:02]} Kxc3 {[%clk 00:00:24]} 47. Rxd5 {[%clk
00:00:07]} {[%emt 00:00:02]} Kb2 {[%clk 00:00:24]} {[%emt 00:00:02]} 48. Ke3
{[%clk 00:00:07]} {[%emt 00:00:02]} Kc3 {[%clk 00:00:23]} {[%emt 00:00:02]} 49.
Rd8 {[%clk 00:00:07]} {[%emt 00:00:02]} Kc2 {[%clk 00:00:25]} {[%emt 00:00:02]}
50. Rc8 {[%clk 00:00:07]} {[%emt 00:00:02]} Kc3 {[%clk 00:00:26]} 51. Rc7
{[%clk 00:00:07]} {[%emt 00:00:02]} Kb3 {[%clk 00:00:19]} {[%emt 00:00:09]} 52.
Kd4 {[%clk 00:00:08]} {[%emt 00:00:02]} Kc2 {[%clk 00:00:20]} 53. Rxc4+ {[%clk
00:00:07]} {[%emt 00:00:03]} Kd2 {[%clk 00:00:22]} 54. Ke5 {[%clk 00:00:06]}
{[%emt 00:00:03]} Ke3 {[%clk 00:00:23]} 55. Rc3+ {[%clk 00:00:07]} {[%emt
00:00:01]} Kf2 {[%clk 00:00:24]} 56. Kf6 {[%clk 00:00:07]} {[%emt 00:00:02]}
1-0